[Event "LTU-chT 2020"]
[Site "Vilnius"]
[Date "2020.09.26"]
[Round "5.4"]
[White "Vedrickas, Tautvydas"]
[Black "Solys, Laimutis"]
[Result "1-0"]
[ECO "D31"]
[WhiteElo "2399"]
[BlackElo "2330"]
[Annotator "ChessBase"]
[PlyCount "159"]
[EventDate "2020.09.25"]
[EventType "team-tourn"]
[EventCountry "LTU"]
[SourceTitle "playchess.com"]
[Source "ChessBase"]
[SourceQuality "1"]
[TimeControl "40/5400+30:1800+30"]

1. d4 {[%emt 0:00:00]} d5 {[%emt 0:00:00]} 2. c4 {[%emt 0:00:00]} e6 {[%emt 0:00:00]} 3. Nc3 {[%emt 0:00:11]} a6 {[%emt 0:00:10]} 4. cxd5 {[%emt 0:12:04]} exd5 {[%emt 0:00:09]} 5. Nf3 {[%emt 0:00:18]} Nf6 {[%emt 0:00:09]} 6. Bg5 {[%emt 0:00:09]} Be6 {[%emt 0:00:12]} 7. e3 {[%emt 0:00:20]} Nbd7 {[%emt 0:00:36]} 8. Bd3 {[%emt 0:00:36]} Bd6 {[%emt 0:00:12]} 9. O-O {[%emt 0:00:55]} O-O {[%emt 0:00:13]} 10. Rc1 {[%emt 0:01:42]} h6 {[%emt 0:01:38]} 11. Bh4 {[%emt 0:08:26]} c6 {[%emt 0:02:01]} 12. Na4 {[%emt 0:03:19]} Qe7 {[%emt 0:16:07]} 13. Bb1 {[%emt 0:03:30]} Rfe8 {[%emt 0:05:40]} 14. Qb3 {[%emt 0:22:08]} Rab8 {[%emt 0:05:27]} 15. Qc2 {[%emt 0:05:45]} Bg4 {[%emt 0:03:48]} 16. Nc5 {[%emt 0:02:29]} g5 {[%emt 0:06:45]} 17. Bg3 {[%emt 0:12:23]} Bxf3 {[%emt 0:11:59]} 18. gxf3 {[%emt 0:00:24]} Nxc5 {[%emt 0:00:47]} 19. dxc5 {[%emt 0:00:49]} Bxg3 {[%emt 0:00:14]} 20. hxg3 {[%emt 0:00:07]} Kg7 {[%emt 0:01:40]} 21. Rcd1 {[%emt 0:01:31]} Qe6 {[%emt 0:06:32]} 22. Kg2 {[%emt 0:00:51]} Rh8 {[%emt 0:03:12]} 23. Rd4 {[%emt 0:01:57]} h5 {[%emt 0:02:05]} 24. Rh1 {[%emt 0:05:21]} Rbe8 {[%emt 0:04:08]} 25. b4 {[%emt 0:00:24]} Reg8 {[%emt 0:03:36]} 26. a4 {[%emt 0:01:26]} Kf8 {[%emt 0:03:58]} 27. Qc3 {[%emt 0:03:11]} Ne8 {[%emt 0:02:46]} 28. b5 {[%emt 0:02:02]} axb5 {[%emt 0:00:40]} 29. axb5 {[%emt 0:00:14]} Nc7 {[%emt 0:01:46]} 30. bxc6 {[%emt 0:00:27]} bxc6 {[%emt 0:02:39]} 31. Ra4 {[%emt 0:01:13]} Rh6 {[%emt 0:01:11]} 32. Qa5 {[%emt 0:01:15]} Qe7 {[%emt 0:02:34]} 33. Bf5 {[%emt 0:04:48]} Kg7 {[%emt 0:06:10]} 34. e4 {[%emt 0:01:29]} Qe5 {[%emt 0:02:44]} 35. Qd2 {[%emt 0:00:26]} Kh8 {[%emt 0:01:30]} 36. Ra7 {[%emt 0:00:54]} Rg7 {[%emt 0:02:09]} 37. Qa5 {[%emt 0:01:13]} dxe4 {[%emt 0:01:12]} 38. Bxe4 {[%emt 0:02:13]} Ne6 {[%emt 0:00:56]} 39. Rd1 {[%emt 0:01:16]} Qxc5 {[%emt 0:00:49]} 40. Ra8+ {[%emt 0:00:44]} Rg8 {[%emt 0:00:18]} 41. Qa1+ {[%emt 0:30:33]} f6 {[%emt 0:30:41]} 42. Rd7 {[%emt 0:00:00]} Rxa8 {[%emt 0:00:00]} 43. Qxa8+ {[%emt 0:00:00]} Qf8 {[%emt 0:00:00]} 44. Qa7 {[%emt 0:00:00]} f5 {[%emt 0:00:00]} 45. Rf7 {[%emt 0:00:00]} fxe4 {[%emt 0:00:00]} 46. Rxf8+ {[%emt 0:00:00]} Nxf8 {[%emt 0:00:00]} 47. fxe4 {[%emt 0:00:00]} g4 {[%emt 0:00:00]} 48. Qe7 {[%emt 0:00:00]} Kg8 {[%emt 0:00:00]} 49. Kf1 {[%emt 0:00:00]} Rg6 {[%emt 0:00:00]} 50. Qe5 {[%emt 0:00:00]} Rh6 {[%emt 0:00:00]} 51. Ke2 {[%emt 0:00:00]} Ne6 {[%emt 0:00:00]} 52. Ke3 {[%emt 0:00:00]} Kf7 {[%emt 0:00:00]} 53. Qf5+ {[%emt 0:00:00]} Kg7 {[%emt 0:00:00]} 54. Kd3 {[%emt 0:00:00]} Kg8 {[%emt 0:01:05]} 55. Kc4 {[%emt 0:00:00]} Kg7 {[%emt 0:00:54]} 56. e5 {[%emt 0:01:34]} Kg8 {[%emt 0:01:21]} 57. Qe4 {[%emt 0:01:00]} Nf8 {[%emt 0:00:46]} 58. Qf4 {[%emt 0:00:50]} Kg7 {[%emt 0:01:48]} 59. Qg5+ {[%emt 0:00:45]} Kh7 {[%emt 0:00:17]} 60. Qd8 {[%emt 0:01:05]} Ne6 {[%emt 0:01:25]} 61. Qd7+ {[%emt 0:00:38]} Ng7 {[%emt 0:00:15]} 62. Kd4 {[%emt 0:01:32]} Re6 {[%emt 0:00:53]} 63. Qf7 {[%emt 0:01:51]} Rg6 {[%emt 0:00:40]} 64. Kc5 {[%emt 0:00:32]} Re6 {[%emt 0:00:57]} 65. Qf4 {[%emt 0:00:43]} Kg6 {[%emt 0:01:05]} 66. Kb6 {[%emt 0:00:55]} Ne8 {[%emt 0:01:10]} 67. Qe4+ {[%emt 0:00:58]} Kh6 {[%emt 0:00:29]} 68. Qf4+ {[%emt 0:00:03]} Kg6 {[%emt 0:00:08]} 69. Kb7 {[%emt 0:00:54]} Ng7 {[%emt 0:01:10]} 70. Kc8 {[%emt 0:00:39]} c5 {[%emt 0:00:18]} 71. Kd7 {[%emt 0:00:33]} c4 {[%emt 0:00:23]} 72. Qe4+ {[%emt 0:00:38]} Kh6 {[%emt 0:00:16]} 73. Qxc4 {[%emt 0:01:01]} Rg6 {[%emt 0:00:43]} 74. Qf4+ {[%emt 0:00:59]} Kh7 {[%emt 0:00:07]} 75. Qf7 {[%emt 0:00:16]} Ra6 {[%emt 0:00:23]} 76. Qc4 {[%emt 0:00:30]} Rg6 {[%emt 0:00:48]} 77. Qe4 {[%emt 0:00:13]} Kh6 {[%emt 0:00:12]} 78. Ke7 {[%emt 0:00:44]} Re6+ {[%emt 0:01:33]} 79. Kf7 {[%emt 0:00:15]} h4 {[%emt 0:00:25]} 80. Qxg4 {[%emt 0:00:41]} 1-0

[Event "LTU-chT 2020"]
[Site "Vilnius"]
[Date "2020.09.26"]
[Round "5.5"]
[White "Miknevicius, Laurynas"]
[Black "Setkauskas, Vaidas"]
[Result "1/2-1/2"]
[ECO "A04"]
[WhiteElo "2192"]
[BlackElo "2238"]
[Annotator "ChessBase"]
[PlyCount "63"]
[EventDate "2020.09.25"]
[EventType "team-tourn"]
[EventCountry "LTU"]
[SourceTitle "playchess.com"]
[Source "ChessBase"]
[SourceQuality "1"]
[TimeControl "40/5400+30:1800+30"]

1. Nf3 {[%emt 0:00:00]} c5 {[%emt 0:00:43]} 2. c4 {[%emt 0:00:00]} Nf6 {[%emt 0:00:36]} 3. Nc3 {[%emt 0:00:05]} e6 {[%emt 0:02:32]} 4. g3 {[%emt 0:00:19]} b6 {[%emt 0:00:15]} 5. Bg2 {[%emt 0:00:20]} Bb7 {[%emt 0:00:04]} 6. O-O {[%emt 0:00:56]} a6 {[%emt 0:01:15]} 7. d4 {[%emt 0:02:17]} cxd4 {[%emt 0:00:39]} 8. Nxd4 {[%emt 0:00:16]} Bxg2 {[%emt 0:00:39]} 9. Kxg2 {[%emt 0:00:04]} Qc7 {[%emt 0:00:15]} 10. Qd3 {[%emt 0:00:38]} Nc6 {[%emt 0:11:28]} 11. Nxc6 {[%emt 0:00:55]} Qxc6+ {[%emt 0:00:37]} 12. f3 {[%emt 0:00:21]} Rc8 {[%emt 0:01:33]} 13. Be3 {[%emt 0:06:15]} Qxc4 {[%emt 0:17:58]} 14. Qxc4 {[%emt 0:00:51]} Rxc4 {[%emt 0:00:05]} 15. Bxb6 {[%emt 0:01:18]} Bb4 {[%emt 0:06:11]} 16. Rac1 {[%emt 0:02:40]} Ke7 {[%emt 0:03:29]} 17. e4 {[%emt 0:06:18]} Rb8 {[%emt 0:01:24]} 18. Na4 {[%emt 0:00:42]} Rbc8 {[%emt 0:01:21]} 19. Be3 {[%emt 0:00:20]} d5 {[%emt 0:01:53]} 20. a3 {[%emt 0:19:08]} Bd6 {[%emt 0:04:14]} 21. exd5 {[%emt 0:00:24]} Nxd5 {[%emt 0:01:22]} 22. Bd2 {[%emt 0:00:33]} g6 {[%emt 0:11:12]} 23. Nc3 {[%emt 0:03:33]} Nxc3 {[%emt 0:03:06]} 24. Rxc3 {[%emt 0:01:31]} Rxc3 {[%emt 0:01:14]} 25. Bxc3 {[%emt 0:02:42]} Bxa3 {[%emt 0:00:27]} 26. Rc1 {[%emt 0:00:21]} Bd6 {[%emt 0:00:51]} 27. f4 {[%emt 0:02:26]} Rc5 {[%emt 0:06:29]} 28. Ra1 {[%emt 0:00:43]} Rc6 {[%emt 0:00:38]} 29. Kf3 {[%emt 0:00:05]} Rb6 {[%emt 0:02:40]} 30. Ra4 {[%emt 0:00:21]} Kd7 {[%emt 0:01:30]} 31. Kg4 {[%emt 0:02:10]} h5+ {[%emt 0:00:54]} 32. Kg5 {[%emt 0:02:38]} 1/2-1/2

[Event "LTU-chT 2020"]
[Site "Vilnius"]
[Date "2020.09.26"]
[Round "5.6"]
[White "Chocenka, Dmitrijus"]
[Black "Kaunas, Kestutis"]
[Result "1/2-1/2"]
[ECO "B13"]
[WhiteElo "2333"]
[BlackElo "2164"]
[Annotator "ChessBase"]
[PlyCount "160"]
[EventDate "2020.09.25"]
[EventType "team-tourn"]
[EventCountry "LTU"]
[SourceTitle "playchess.com"]
[Source "ChessBase"]
[SourceQuality "1"]
[TimeControl "40/5400+30:1800+30"]

1. e4 {[%emt 0:00:00]} c6 {[%emt 0:00:00]} 2. d4 {[%emt 0:00:00]} d5 {[%emt 0:00:00]} 3. exd5 {[%emt 0:00:00]} cxd5 {[%emt 0:00:00]} 4. c4 {[%emt 0:00:00]} Nf6 {[%emt 0:00:03]} 5. Nc3 {[%emt 0:00:00]} Nc6 {[%emt 0:00:11]} 6. Nf3 {[%emt 0:00:00]} Bg4 {[%emt 0:00:08]} 7. cxd5 {[%emt 0:00:02]} Nxd5 {[%emt 0:00:21]} 8. Qb3 {[%emt 0:00:12]} Bxf3 {[%emt 0:00:07]} 9. gxf3 {[%emt 0:00:04]} e6 {[%emt 0:01:00]} 10. Qxb7 {[%emt 0:00:10]} Nxd4 {[%emt 0:00:51]} 11. Bb5+ {[%emt 0:00:06]} Nxb5 {[%emt 0:00:14]} 12. Qc6+ {[%emt 0:00:04]} Ke7 {[%emt 0:00:58]} 13. Qxb5 {[%emt 0:00:06]} Qd7 {[%emt 0:15:16]} 14. Nxd5+ {[%emt 0:01:20]} Qxd5 {[%emt 0:00:30]} 15. Bg5+ {[%emt 0:00:17]} f6 {[%emt 0:00:04]} 16. Qxd5 {[%emt 0:00:04]} exd5 {[%emt 0:00:08]} 17. Be3 {[%emt 0:00:02]} Ke6 {[%emt 0:00:55]} 18. O-O-O {[%emt 0:00:10]} Bb4 {[%emt 0:00:37]} 19. a3 {[%emt 0:00:07]} Ba5 {[%emt 0:00:10]} 20. b4 {[%emt 0:00:23]} Bb6 {[%emt 0:05:01]} 21. Rhe1 {[%emt 0:02:36]} Kd6 {[%emt 0:24:32]} 22. Bf4+ {[%emt 0:02:07]} Kc6 {[%emt 0:00:03]} 23. Re6+ {[%emt 0:00:59]} Kb5 {[%emt 0:00:05]} 24. Rxd5+ {[%emt 0:02:26]} Kc4 {[%emt 0:01:35]} 25. Rd2 {[%emt 0:01:14]} Rhe8 {[%emt 0:06:28]} 26. Rc6+ {[%emt 0:09:59]} Kb3 {[%emt 0:05:35]} 27. Rd3+ {[%emt 0:00:37]} Ka4 {[%emt 0:00:28]} 28. Be3 {[%emt 0:00:38]} Rad8 {[%emt 0:04:06]} 29. Rxd8 {[%emt 0:02:02]} Rxd8 {[%emt 0:00:33]} 30. Bxb6 {[%emt 0:03:08]} axb6 {[%emt 0:00:08]} 31. Rxb6 {[%emt 0:00:18]} Kxa3 {[%emt 0:00:36]} 32. Kc2 {[%emt 0:00:07]} Rc8+ {[%emt 0:04:59]} 33. Kd3 {[%emt 0:01:03]} Kb3 {[%emt 0:01:04]} 34. Rb7 {[%emt 0:00:16]} Rc3+ {[%emt 0:07:38]} 35. Ke2 {[%emt 0:00:59]} Rc2+ {[%emt 0:04:02]} 36. Kf1 {[%emt 0:00:28]} g5 {[%emt 0:01:57]} 37. Rxh7 {[%emt 0:01:18]} Kxb4 {[%emt 0:02:46]} 38. Rb7+ {[%emt 0:00:12]} Ka5 {[%emt 0:00:40]} 39. Kg2 {[%emt 0:00:14]} Ka6 {[%emt 0:00:16]} 40. Rb1 {[%emt 0:00:09]} Rc4 {[%emt 0:01:20]} 41. Kg3 {[%emt 0:30:15]} Ka7 {[%emt 0:34:27]} 42. Re1 {[%emt 0:01:58]} Kb7 {[%emt 0:00:38]} 43. Re4 {[%emt 0:00:05]} Rc1 {[%emt 0:02:05]} 44. h3 {[%emt 0:03:44]} Rc5 {[%emt 0:03:42]} 45. f4 {[%emt 0:01:15]} Kc7 {[%emt 0:02:09]} 46. Rd4 {[%emt 0:00:29]} Kc6 {[%emt 0:00:00]} 47. fxg5 {[%emt 0:00:00]} fxg5 {[%emt 0:00:00]} 48. h4 {[%emt 0:00:00]} gxh4+ {[%emt 0:00:00]} 49. Kxh4 {[%emt 0:00:00]} Rf5 {[%emt 0:00:00]} 50. f4 {[%emt 0:00:00]} Kc5 {[%emt 0:01:30]} 51. Kg4 {[%emt 0:00:00]} Rf8 {[%emt 0:00:15]} 52. Rd7 {[%emt 0:00:00]} Kc6 {[%emt 0:01:16]} 53. Rd1 {[%emt 0:00:00]} Rg8+ {[%emt 0:00:50]} 54. Kf3 {[%emt 0:00:00]} Rf8 {[%emt 0:00:32]} 55. Rd2 {[%emt 0:00:00]} Kc5 {[%emt 0:00:38]} 56. Re2 {[%emt 0:00:00]} Kd6 {[%emt 0:01:37]} 57. Re5 {[%emt 0:00:00]} Rf6 {[%emt 0:02:21]} 58. Kg4 {[%emt 0:00:00]} Rf8 {[%emt 0:00:19]} 59. Kg5 {[%emt 0:00:00]} Rg8+ {[%emt 0:00:43]} 60. Kf5 {[%emt 0:00:00]} Rf8+ {[%emt 0:00:24]} 61. Ke4 {[%emt 0:00:00]} Rh8 {[%emt 0:00:31]} 62. Ra5 {[%emt 0:00:00]} Ke6 {[%emt 0:00:30]} 63. Ra6+ {[%emt 0:00:00]} Kf7 {[%emt 0:00:18]} 64. Ke5 {[%emt 0:00:00]} Re8+ {[%emt 0:00:37]} 65. Kf5 {[%emt 0:00:00]} Re7 {[%emt 0:00:25]} 66. Kg5 {[%emt 0:00:00]} Rb7 {[%emt 0:00:38]} 67. f5 {[%emt 0:00:00]} Kg7 {[%emt 0:00:32]} 68. Rg6+ {[%emt 0:00:00]} Kh7 {[%emt 0:00:46]} 69. Rh6+ {[%emt 0:00:00]} Kg8 {[%emt 0:00:32]} 70. Kg6 {[%emt 0:00:00]} Rb1 {[%emt 0:00:14]} 71. Rh2 {[%emt 0:00:00]} Rb7 {[%emt 0:00:41]} 72. Ra2 {[%emt 0:00:00]} Rg7+ {[%emt 0:00:22]} 73. Kf6 {[%emt 0:00:00]} Rf7+ {[%emt 0:00:48]} 74. Ke6 {[%emt 0:00:00]} Kg7 {[%emt 0:00:31]} 75. Rg2+ {[%emt 0:00:00]} Kf8 {[%emt 0:00:05]} 76. f6 {[%emt 0:00:00]} Ra7 {[%emt 0:00:45]} 77. Rb2 {[%emt 0:00:00]} Ra6+ {[%emt 0:00:17]} 78. Kf5 {[%emt 0:00:00]} Ra1 {[%emt 0:00:15]} 79. Re2 {[%emt 0:00:00]} Rb1 {[%emt 0:00:52]} 80. Re4 {[%emt 0:00:00]} Ra1 {[%emt 0:00:24]} 1/2-1/2

[Event "LTU-chT 2020"]
[Site "Vilnius"]
[Date "2020.09.26"]
[Round "5.7"]
[White "Juknis, Paulius"]
[Black "Limontas, Martynas"]
[Result "1/2-1/2"]
[ECO "D02"]
[WhiteElo "2145"]
[BlackElo "2301"]
[Annotator "ChessBase"]
[PlyCount "32"]
[EventDate "2020.09.25"]
[EventType "team-tourn"]
[EventCountry "LTU"]
[SourceTitle "playchess.com"]
[Source "ChessBase"]
[SourceQuality "1"]
[TimeControl "40/5400+30:1800+30"]

1. d4 {[%emt 0:00:00]} d5 {[%emt 0:00:00]} 2. Nf3 {[%emt 0:00:17]} Nc6 {[%emt 0:00:00]} 3. g3 {[%emt 0:00:51]} Bg4 {[%emt 0:01:46]} 4. Bg2 {[%emt 0:00:16]} Qd7 {[%emt 0:00:59]} 5. O-O {[%emt 0:01:45]} Bh3 {[%emt 0:01:27]} 6. c4 {[%emt 0:00:13]} Bxg2 {[%emt 0:00:15]} 7. Kxg2 {[%emt 0:00:07]} e6 {[%emt 0:03:39]} 8. Qa4 {[%emt 0:01:12]} Nf6 {[%emt 0:02:22]} 9. Nc3 {[%emt 0:00:23]} Be7 {[%emt 0:05:32]} 10. cxd5 {[%emt 0:01:56]} exd5 {[%emt 0:04:30]} 11. Bg5 {[%emt 0:00:19]} h6 {[%emt 0:04:52]} 12. Bxf6 {[%emt 0:00:28]} Bxf6 {[%emt 0:00:03]} 13. e3 {[%emt 0:05:35]} O-O {[%emt 0:02:51]} 14. Rac1 {[%emt 0:04:17]} Rfd8 {[%emt 0:05:20]} 15. Qc2 {[%emt 0:15:44]} Ne7 {[%emt 0:13:04]} 16. Ne2 {[%emt 0:06:19]} c6 {[%emt 0:02:06]} 1/2-1/2

[Event "LTU-chT 2020"]
[Site "Vilnius"]
[Date "2020.09.26"]
[Round "5.8"]
[White "Mickevicius, Juras"]
[Black "Jankunas, Tomas"]
[Result "1-0"]
[ECO "E69"]
[WhiteElo "2277"]
[BlackElo "2127"]
[Annotator "ChessBase"]
[PlyCount "81"]
[EventDate "2020.09.25"]
[EventType "team-tourn"]
[EventCountry "LTU"]
[SourceTitle "playchess.com"]
[Source "ChessBase"]
[SourceQuality "1"]
[TimeControl "40/5400+30:1800+30"]

1. d4 {[%emt 0:00:00]} Nf6 {[%emt 0:00:00]} 2. c4 {[%emt 0:00:00]} g6 {[%emt 0:00:00]} 3. g3 {[%emt 0:00:00]} Bg7 {[%emt 0:00:00]} 4. Bg2 {[%emt 0:00:00]} O-O {[%emt 0:00:29]} 5. Nf3 {[%emt 0:00:00]} d6 {[%emt 0:00:12]} 6. Nc3 {[%emt 0:00:01]} Nbd7 {[%emt 0:00:37]} 7. O-O {[%emt 0:00:06]} e5 {[%emt 0:01:15]} 8. e4 {[%emt 0:00:10]} c6 {[%emt 0:00:21]} 9. h3 {[%emt 0:00:08]} Qb6 {[%emt 0:02:59]} 10. Re1 {[%emt 0:00:27]} exd4 {[%emt 0:00:21]} 11. Nxd4 {[%emt 0:00:03]} Re8 {[%emt 0:00:21]} 12. Nc2 {[%emt 0:00:24]} Qc7 {[%emt 0:02:14]} 13. b3 {[%emt 0:16:37]} Nc5 {[%emt 0:23:08]} 14. Bf4 {[%emt 0:04:25]} Rd8 {[%emt 0:06:52]} 15. Qd2 {[%emt 0:15:03]} Ne6 {[%emt 0:02:13]} 16. Bh6 {[%emt 0:01:45]} Bh8 {[%emt 0:03:19]} 17. Rac1 {[%emt 0:01:42]} a5 {[%emt 0:03:11]} 18. Red1 {[%emt 0:06:29]} Nd7 {[%emt 0:02:05]} 19. Ne3 {[%emt 0:03:52]} Ndc5 {[%emt 0:09:54]} 20. Ne2 {[%emt 0:10:32]} Qe7 {[%emt 0:08:04]} 21. f4 {[%emt 0:01:44]} Nc7 {[%emt 0:10:15]} 22. Nc3 {[%emt 0:02:59]} Ne8 {[%emt 0:02:42]} 23. g4 {[%emt 0:06:50]} Be6 {[%emt 0:09:16]} 24. Rf1 {[%emt 0:04:40]} Bd7 {[%emt 0:09:27]} 25. Bg5 {[%emt 0:04:33]} Bf6 {[%emt 0:01:12]} 26. Ned5 {[%emt 0:06:03]} cxd5 {[%emt 0:01:11]} 27. Nxd5 {[%emt 0:00:02]} Qe6 {[%emt 0:00:25]} 28. f5 {[%emt 0:01:03]} Qe5 {[%emt 0:01:19]} 29. Nxf6+ {[%emt 0:02:31]} Nxf6 {[%emt 0:00:15]} 30. fxg6 {[%emt 0:00:02]} Ncxe4 {[%emt 0:00:36]} 31. gxf7+ {[%emt 0:08:22]} Kh8 {[%emt 0:00:05]} 32. Bxe4 {[%emt 0:00:09]} Nxe4 {[%emt 0:00:20]} 33. Bxd8 {[%emt 0:00:18]} Rxd8 {[%emt 0:00:52]} 34. f8=Q+ {[%emt 0:01:36]} Rxf8 {[%emt 0:00:06]} 35. Rxf8+ {[%emt 0:00:02]} Kg7 {[%emt 0:00:05]} 36. Qf4 {[%emt 0:00:16]} Qd4+ {[%emt 0:01:33]} 37. Kf1 {[%emt 0:00:16]} Qd3+ {[%emt 0:00:19]} 38. Ke1 {[%emt 0:00:09]} Be6 {[%emt 0:00:31]} 39. Re8 {[%emt 0:00:31]} Nc5 {[%emt 0:00:42]} 40. Qg5+ {[%emt 0:01:39]} Kf7 {[%emt 0:00:10]} 41. Re7+ 1-0

[Event "LTU-chT 2020"]
[Site "Vilnius"]
[Date "2020.09.26"]
[Round "5.9"]
[White "Valantiejus, Vaidotas"]
[Black "Viskelis, Darius"]
[Result "0-1"]
[ECO "C65"]
[WhiteElo "2099"]
[BlackElo "2226"]
[Annotator "ChessBase"]
[PlyCount "138"]
[EventDate "2020.09.25"]
[EventType "team-tourn"]
[EventCountry "LTU"]
[SourceTitle "playchess.com"]
[Source "ChessBase"]
[SourceQuality "1"]
[TimeControl "40/5400+30:1800+30"]

1. e4 {[%emt 0:00:00]} e5 {[%emt 0:00:00]} 2. Nf3 {[%emt 0:00:00]} Nc6 {[%emt 0:00:00]} 3. Bb5 {[%emt 0:00:00]} Bc5 {[%emt 0:00:00]} 4. c3 {[%emt 0:00:21]} Nf6 {[%emt 0:00:11]} 5. O-O {[%emt 0:00:59]} O-O {[%emt 0:00:12]} 6. d4 {[%emt 0:01:00]} Bb6 {[%emt 0:00:21]} 7. Bg5 {[%emt 0:02:03]} h6 {[%emt 0:01:27]} 8. Bh4 {[%emt 0:02:30]} d6 {[%emt 0:01:03]} 9. Qd3 {[%emt 0:01:57]} g5 {[%emt 0:09:00]} 10. Nxg5 {[%emt 0:19:07]} hxg5 {[%emt 0:03:42]} 11. Bxg5 {[%emt 0:00:02]} Kg7 {[%emt 0:05:52]} 12. Bxc6 {[%emt 0:13:22]} bxc6 {[%emt 0:00:09]} 13. f4 {[%emt 0:00:20]} exd4 {[%emt 0:04:59]} 14. cxd4 {[%emt 0:02:37]} Ba6 {[%emt 0:06:16]} 15. Qxa6 {[%emt 0:07:26]} Bxd4+ {[%emt 0:00:11]} 16. Kh1 {[%emt 0:00:12]} Bxb2 {[%emt 0:08:51]} 17. Nd2 {[%emt 0:00:57]} Bxa1 18. e5 {[%emt 0:04:12]} dxe5 {[%emt 0:15:11]} 19. Ne4 {[%emt 0:01:14]} Nxe4 {[%emt 0:23:55]} 20. Bxd8 {[%emt 0:00:13]} Bd4 {[%emt 0:00:48]} 21. Bh4 {[%emt 0:06:09]} Rh8 {[%emt 0:00:24]} 22. Qxc6 {[%emt 0:01:29]} Rxh4 {[%emt 0:01:08]} 23. Qxe4 {[%emt 0:00:13]} Rah8 {[%emt 0:00:30]} 24. h3 {[%emt 0:00:14]} c5 {[%emt 0:00:11]} 25. Rf3 {[%emt 0:02:00]} exf4 {[%emt 0:03:31]} 26. Rxf4 {[%emt 0:00:27]} Rxf4 {[%emt 0:00:39]} 27. Qxf4 {[%emt 0:00:02]} Rh6 {[%emt 0:00:20]} 28. h4 {[%emt 0:02:57]} Re6 {[%emt 0:05:57]} 29. Qg4+ {[%emt 0:01:54]} Rg6 {[%emt 0:01:24]} 30. Qe4 {[%emt 0:01:17]} Re6 {[%emt 0:00:34]} 31. Qc2 {[%emt 0:02:06]} Rg6 {[%emt 0:02:48]} 32. h5 {[%emt 0:02:31]} Rg4 {[%emt 0:00:42]} 33. Kh2 {[%emt 0:05:57]} Rh4+ {[%emt 0:00:42]} 34. Kg3 {[%emt 0:00:01]} Rxh5 {[%emt 0:00:06]} 35. Qa4 {[%emt 0:00:45]} Rg5+ {[%emt 0:01:17]} 36. Kf3 {[%emt 0:00:17]} Be5 {[%emt 0:02:32]} 37. g4 {[%emt 0:01:15]} Bf6 {[%emt 0:02:20]} 38. Qc4 {[%emt 0:05:10]} Re5 {[%emt 0:00:10]} 39. a4 {[%emt 0:00:55]} a5 {[%emt 0:00:26]} 40. Qb5 {[%emt 0:01:29]} Rg5 {[%emt 0:01:14]} 41. Qxa5 {[%emt 0:33:58]} c4 {[%emt 0:30:33]} 42. Qc7 {[%emt 0:00:17]} c3 {[%emt 0:00:00]} 43. a5 {[%emt 0:00:00]} c2 {[%emt 0:00:00]} 44. Qxc2 {[%emt 0:00:00]} Rxa5 {[%emt 0:00:00]} 45. Qc8 {[%emt 0:00:00]} Ra3+ {[%emt 0:00:00]} 46. Kf4 {[%emt 0:00:00]} Ra4+ {[%emt 0:00:00]} 47. Kf3 {[%emt 0:00:00]} Ra1 {[%emt 0:00:00]} 48. Qd7 {[%emt 0:00:00]} Rf1+ {[%emt 0:00:00]} 49. Kg2 {[%emt 0:00:00]} Rf4 {[%emt 0:00:00]} 50. Qc8 {[%emt 0:00:00]} Be5 {[%emt 0:00:00]} 51. Kh3 {[%emt 0:00:00]} Rf3+ {[%emt 0:00:00]} 52. Kg2 {[%emt 0:00:00]} Rf4 {[%emt 0:00:00]} 53. Kh3 {[%emt 0:00:00]} Rf6 {[%emt 0:00:00]} 54. Kg2 {[%emt 0:00:00]} Re6 {[%emt 0:00:00]} 55. Kf3 {[%emt 0:00:00]} Bf6 {[%emt 0:00:00]} 56. Kf4 {[%emt 0:00:00]} Bd4 {[%emt 0:00:00]} 57. Kf3 {[%emt 0:00:00]} Rf6+ {[%emt 0:00:00]} 58. Ke4 {[%emt 0:00:00]} Bf2 {[%emt 0:00:00]} 59. Qc3 {[%emt 0:00:00]} Kg6 {[%emt 0:00:00]} 60. Qc8 {[%emt 0:00:00]} Re6+ {[%emt 0:00:00]} 61. Kf3 {[%emt 0:00:00]} Bd4 {[%emt 0:00:00]} 62. Qg8+ {[%emt 0:00:00]} Bg7 {[%emt 0:00:00]} 63. Kf4 {[%emt 0:00:00]} Re1 {[%emt 0:00:00]} 64. Kf3 {[%emt 0:00:00]} Rg1 {[%emt 0:00:00]} 65. Kf4 {[%emt 0:00:00]} Rf1+ {[%emt 0:00:00]} 66. Kg3 {[%emt 0:00:00]} Rg1+ {[%emt 0:00:00]} 67. Kf4 {[%emt 0:00:00]} Rh1 {[%emt 0:00:00]} 68. Kg3 {[%emt 0:00:00]} Rh8 {[%emt 0:00:00]} 69. Qxh8 {[%emt 0:00:00]} Bxh8 {[%emt 0:00:00]} 0-1

[Event "LTU-chT 2020"]
[Site "Vilnius"]
[Date "2020.09.26"]
[Round "5.10"]
[White "Bastys, Robertas"]
[Black "Aleknavicius, Andrius"]
[Result "0-1"]
[ECO "A04"]
[WhiteElo "2232"]
[BlackElo "1947"]
[Annotator "ChessBase"]
[PlyCount "30"]
[EventDate "2020.09.25"]
[EventType "team-tourn"]
[EventCountry "LTU"]
[SourceTitle "playchess.com"]
[Source "ChessBase"]
[SourceQuality "1"]
[TimeControl "40/5400+30:1800+30"]

1. Nf3 {[%emt 0:00:00]} f5 {[%emt 0:00:00]} 2. d3 {[%emt 0:00:05]} Nc6 {[%emt 0:00:01]} 3. e4 {[%emt 0:00:40]} e5 {[%emt 0:00:25]} 4. exf5 {[%emt 0:02:45]} d5 {[%emt 0:05:29]} 5. g4 {[%emt 0:04:25]} h5 {[%emt 0:06:33]} 6. gxh5 {[%emt 0:03:52]} Bxf5 {[%emt 0:00:30]} 7. Bg5 {[%emt 0:05:18]} Be7 {[%emt 0:02:24]} 8. Rg1 {[%emt 0:10:53]} Rxh5 {[%emt 0:10:33]} 9. Bxe7 {[%emt 0:08:45]} Qxe7 {[%emt 0:00:19]} 10. Be2 {[%emt 0:03:47]} O-O-O {[%emt 0:05:37]} 11. Qd2 {[%emt 0:03:36]} e4 {[%emt 0:04:47]} 12. Ng5 {[%emt 0:03:48]} exd3 {[%emt 0:01:45]} 13. cxd3 {[%emt 0:01:00]} Nd4 {[%emt 0:01:32]} 14. Kf1 {[%emt 0:03:52]} Nxe2 {[%emt 0:00:49]} 15. Qxe2 {[%emt 0:00:14]} Rxg5 {[%emt 0:00:10]} 0-1

[Event "LTU-chT 2020"]
[Site "Vilnius"]
[Date "2020.09.27"]
[Round "6.1"]
[White "Laurusas, Tomas"]
[Black "Vaicekauskas, Gytis"]
[Result "1-0"]
[ECO "A85"]
[WhiteElo "2503"]
[BlackElo "2226"]
[Annotator "ChessBase"]
[PlyCount "57"]
[EventDate "2020.09.25"]
[EventType "team-tourn"]
[EventCountry "LTU"]
[SourceTitle "playchess.com"]
[Source "ChessBase"]
[SourceQuality "1"]
[TimeControl "40/5400+30:1800+30"]

1. d4 {[%emt 0:00:00]} f5 {[%emt 0:00:00]} 2. c4 {[%emt 0:07:07]} Nf6 {[%emt 0:04:10]} 3. Nc3 {[%emt 0:00:43]} b6 {[%emt 0:03:35]} 4. Nf3 {[%emt 0:08:10]} Bb7 {[%emt 0:01:46]} 5. d5 {[%emt 0:01:59]} Na6 {[%emt 0:10:55]} 6. g3 {[%emt 0:01:03]} e6 {[%emt 0:13:08]} 7. Bg2 {[%emt 0:02:12]} Bb4 {[%emt 0:09:02]} 8. Bd2 {[%emt 0:00:11]} Nc5 {[%emt 0:10:27]} 9. Rc1 {[%emt 0:04:02]} O-O {[%emt 0:05:51]} 10. dxe6 {[%emt 0:08:29]} dxe6 {[%emt 0:03:52]} 11. O-O {[%emt 0:00:43]} Qe7 {[%emt 0:01:41]} 12. Bf4 {[%emt 0:01:56]} Bxc3 {[%emt 0:04:03]} 13. Rxc3 {[%emt 0:00:02]} Rad8 {[%emt 0:00:48]} 14. Qa1 {[%emt 0:02:21]} Bxf3 {[%emt 0:04:49]} 15. exf3 {[%emt 0:10:27]} e5 {[%emt 0:05:41]} 16. Re3 {[%emt 0:00:50]} Nd3 {[%emt 0:01:17]} 17. Bxe5 {[%emt 0:01:16]} Nxe5 {[%emt 0:01:58]} 18. f4 {[%emt 0:09:39]} Nfg4 {[%emt 0:01:21]} 19. Re2 {[%emt 0:00:26]} Qd6 {[%emt 0:01:37]} 20. fxe5 {[%emt 0:00:41]} Nxe5 {[%emt 0:00:07]} 21. b3 {[%emt 0:01:57]} Ng6 {[%emt 0:01:41]} 22. Bd5+ {[%emt 0:01:36]} Kh8 {[%emt 0:00:04]} 23. Re6 {[%emt 0:00:07]} Qa3 {[%emt 0:02:30]} 24. Rfe1 {[%emt 0:09:26]} Rd6 {[%emt 0:00:55]} 25. Rxd6 {[%emt 0:05:26]} Qxd6 {[%emt 0:00:14]} 26. Re6 {[%emt 0:00:03]} Qa3 {[%emt 0:01:40]} 27. h4 {[%emt 0:02:35]} f4 {[%emt 0:01:34]} 28. h5 {[%emt 0:00:53]} fxg3 {[%emt 0:00:28]} 29. h6 {[%emt 0:01:07]} 1-0